Workbook

Sheet Drainage-Summary 9190-26-71
A1: 1 | B1: Basic Project Information
A2: 2 | B2: Project ID: 9190-26(27)-71
A3: 3 | B3: Title: Pulaski - STH 22
A4: 4 | B4: Designer/Checker: Spielmacher
A5: 5 | B5: DOT Region/Firm Name: NER
A6: 6 | B6: Date: 3-21-18
A8: 7 | B8: HIGHWAY: | C8: STH 32
A9: 8 | B9: LIMITS: | C9: Pulaski NVL - CTH E, CTH E - STH 22
A10: 9 | B10: COUNTY: | C10: Outagamie
A11: 10 | B11: DESCRIPTION OF WORK: | C11: Resurfacing
A12: 11 | B12: PROJECT MANAGER: | C12: Zoellner
A13: 12 | B13: PS&E DATE: | C13: 2020-11-01
A14: 13 | B14: DESIGN STAGE
A16: 14 | B16: Drainage Summary
A17: 15 | B17: IS THERE A SIGNIFICANT FLOW INCREASE OR DECREASE WITHIN ANY SUB BASIN OF THE PROJECT? IF YES, DESCRIBE THE CAUSE OF THE CHANGE AND WHY IT IS NECESSARY.
A18: 16 | B18: no
A21: 17 | B21: IS THERE A SIGNIFICANT IMPERVIOUS AREA CHANGE TO ANY SUB BASIN OF THE PROJECT? IF YES, DESCRIBE THE CAUSE OF THE CHANGE AND WHY IT IS NECESSARY.
A22: 18 | B22: no
A23: 19 | B23: HAVE THE DRAINAGE SUB BASIN AREAS OR FLOW PATHS CHANGED SIGNIFICANTLY? IF YES, DESCRIBE THE CAUSE OF THE CHANGE AND WHY IT IS NECESSARY.
A24: 20 | B24: no
A25: 21 | B25: DESCRIBE THE PROPOSED DRAINAGE CONVEYANCE AND CONTROL SYSTEMS FOR THE PROJECT.
A26: 22 | B26: roadside ditches and cross culverts
A27: 23 | B27: DESCRIBE THE AQUATIC ORGANISM PASSAGE ISSUES FOR THE PROJECT, IF ANY.
A28: 24 | B28: NA
A29: 25 | B29: IF THE DESIGN DOES NOT MEET THE DOT FDM CHAPTER 13 DRAINAGE REQUIREMENTS, EXPLAIN HOW AND WHY.
A30: 26 | B30: NA
A31: 27 | B31: DESCRIBE WDNR COORDINATION. PROVIDE NAME OF WDNR CONTACT AND DATE, AND ATTACH ANY CORRESPONDENCE.
A32: 28 | B32: DNR Initial Project Review dated March 7, 2016 (Doperalski)
A33: 29 | B33: IF THE DRAINAGE DESIGN MEETS LOCAL, MUNICIPAL OR REGIONAL GUIDELINES THAT EXCEED FDM CHAPTER 13 DRAINAGE REQUIREMENTS, EXPLAIN HOW AND WHY.
A34: 30 | B34: NA
A35: 29 | B35: IF A SIGNIFICANT IMPACT TO THE PROJECT OCCURS DUE TO DRAINAGE, PROJECT MANAGER CONCURRENCE IS REQUIRED. (PM SIGN AND DATE)
A36: 30 | B36: NA

Sheet Drainage-Data 9190-26-71
A1: 1 | B1: Drainage Data
A2: 2 | B2: ='Drainage-Summary 9190-26-71'!B2 -> Project ID: 9190-26(27)-71
A3: 3 | B3: ='Drainage-Summary 9190-26-71'!B3 -> Title: Pulaski - STH 22
A4: 4 | B4: ='Drainage-Summary 9190-26-71'!B4 -> Designer/Checker: Spielmacher
A5: 5 | B5: ='Drainage-Summary 9190-26-71'!B5 -> DOT Region/Firm Name: NER
A6: 6 | B6: ='Drainage-Summary 9190-26-71'!B6 -> Date: 3-21-18
A8: 7 | B8: Section 1: OUTFALL INFORMATION (all projects) | F8: (CTH S)
A9: 8 | B9: Outfall number | C9: 1 | D9: 2 | E9: 3 | F9: 4 | G9: 5 | H9: 6 | I9: 7 | J9: 8 | K9: 9
A10: 9 | B10: Outfall discharges to: | C10: Ditch | D10: Ditch | E10: Ditch | F10: Ditch | G10: Ditch | H10: Ditch | I10: Ditch | J10: Ditch | K10: Ditch
A11: 10 | B11: Waterway crossing type | C11: Culvert | D11: Culvert | E11: Culvert | F11: Culvert | G11: Culvert | H11: Culvert | I11: Culvert | J11: Culvert | K11: Culvert
A12: 12 | B12: Previous flooding issues or flow restrictions? | C12: No | D12: No | E12: No | F12: No | G12: No | H12: No | I12: No | J12: No | K12: No
A13: 13 | B13: Is the drainageway a navigable waterway? | C13: No | D13: No | E13: No | F13: No | G13: No | H13: No | I13: No | J13: No | K13: No
A14: 14 | B14: Waterway designation, if any | C14: N/A | D14: N/A | E14: N/A | F14: N/A | G14: N/A | H14: N/A | I14: N/A | J14: N/A | K14: N/A
A16: 15 | B16: Section 2: BASIC SUB BASIN DRAINAGE INFORMATION (all projects) | F16: (CTH S)
A17: 16 | B17: Outfall number | C17: =C9 -> 1 | D17: 2 | E17: 3 | F17: 4 | G17: 5 | H17: 6 | I17: =I9 -> 7 | J17: 8 | K17: 9
A18: 17 | B18: Outfall station | C18: 45+20 | D18: 8112 | E18: 14565 | F18: 6547 | G18: 22840 | H18: 57975 | I18: 58505 | J18: 62094 | K18: 67850
A19: 18 | B19: Flood design frequency (yrs) | C19: 25 | D19: 25 | E19: 25 | F19: 25 | G19: 25 | H19: 25 | I19: 25 | J19: 25 | K19: 25
A20: 19 | B20: Check design frequency (yrs) | C20: 100 | D20: 100 | E20: 100 | F20: 100 | G20: 100 | H20: 100 | I20: 100 | J20: 100 | K20: 100
A21: 20 | B21: Drainage area (acres) | C21: 2.17 | D21: 33.7 | E21: 30.1 | F21: 32 | G21: 152.6 | H21: 58.1 | I21: 36 | J21: 38.4 | K21: 32
A22: 21 | B22: Hydrologic Method | C22: rational | D22: rational | E22: rational | F22: rational | G22: rational | H22: rational | I22: rational | J22: rational | K22: rational
A23: 22 | B23: Time of Concentration (min) | C23: 2.5 | D23: 30 | E23: 42 | F23: 32 | G23: 84 | H23: 46 | I23: 21 | J23: 28 | K23: 32
A24: 23 | B24: C or CN | C24: 0.885 | D24: 0.19 | E24: 0.2 | F24: 0.22 | G24: 0.17 | H24: 0.18 | I24: 0.18 | J24: 0.2 | K24: 0.18
A25: 24 | B25: Rainfall intensity (in/hr) (rational method only) | C25: 7.25 | D25: 3.2 | E25: 2.5 | F25: 3 | G25: 1.6 | H25: 2.4 | I25: 3.9 | J25: 3.3 | K25: 3
A26: 25 | B26: Rainfall depth for design storm (in) | C26: NA | D26: NA | E26: NA | F26: NA | G26: NA | H26: NA | I26: NA | J26: NA | K26: NA
A27: 26 | B27: Design peak flow rate (cfs) | C27: =C24*C25*C21 -> 13.9232625 | D27: =D24*D25*D21 -> 20.4896 | E27: 15.05 | F27: 21.12 | G27: 41.5072 | H27: 25.0992 | I27: 25.272 | J27: 25.344 | K27: 17.28
A28: 27 | B28: Check peak flow rate (cfs) | C28: =C24*C21*9 -> 17.28405 | D28: =D24*D21*4 -> 25.612 | E28: =E24*E21*3.1 -> 18.662 | F28: =F24*F21*3.7 -> 26.048 | G28: =G24*G21*2 -> 51.884 | H28: =H24*H21*3 -> 31.374 | I28: =I24*I21*4.75 -> 30.78 | J28: =J24*J21*4 -> 30.72 | K28: =K24*K21*3.8 -> 21.888
A29: 28 | B29: Hydraulic Design software | C29: HY-8 | D29: HY-8 | E29: HY-8 | F29: HY-8 | G29: HY-8 | H29: HY-8 | I29: HY-8 | J29: HY-8 | K29: HY-8
A31: 29 | B31: Section 3: URBAN/TRANS 401 PROJECTS
A32: 30 | B32: Outfall number | C32: =C9 -> 1 | D32: 2 | E32: 3 | F32: 4 | G32: 5 | H32: 6 | I32: =I9 -> 7 | J32: 8 | K32: 9
A33: 31 | B33: DOT right-of-way area (ac) | C33: 1
A34: 32 | B34: DOT area/drainage area (%) | C34: =C33/C21 -> 0.4608294931 | D34: =D33/D21 -> 0 | E34: 0 | F34: 0 | G34: 0 | H34: 0 | I34: =I33/I21 -> 0 | J34: 0 | K34: 0
A35: 33 | B35: DOT impervious area--existing (ac)
A36: 34 | B36: DOT impervious area--proposed (ac)
A37: 35 | B37: Impervious area change (ac) | C37: =C36-C35 -> 0 | D37: =D36-D35 -> 0 | E37: 0 | F37: 0 | G37: 0 | H37: 0 | I37: =I36-I35 -> 0 | J37: 0 | K37: 0
A38: 36 | B38: Impervious area change (%) | C38: =C37/C35 ->  | I38: =I37/I35 -> 
A39: 37 | B39: Design peak flow rate--proposed (cfs) pre-detention
A40: 38 | B40: Peak flow rate change (cfs) | C40: =C39-C27 -> -13.9232625 | D40: -20.4896 | E40: -15.05 | F40: -21.12 | G40: -41.5072 | H40: -25.0992 | I40: =I39-I27 -> -25.272 | J40: -25.344 | K40: -17.28
A41: 39 | B41: Peak flow rate change (%) | C41: =C40/C27 -> -1 | D41: -1 | E41: -1 | F41: -1 | G41: -1 | H41: -1 | I41: =I40/I27 -> -1 | J41: -1 | K41: -1
A42: 40 | B42: Design peak flow rate--proposed (cfs) post-detention
A43: 41 | B43: 2-yr peak flow rate--existing (cfs)
A44: 42 | B44: 2-yr peak flow rate--proposed (cfs)
A45: 43 | B45: 2-yr peak flow rate--post-detention (cfs)
A47: 44 | B47: Section 4: CULVERT DESIGN
A48: 45 | B48: Existing Culvert | F48: (CTH S)
A49: 46 | B49: Outfall number | C49: =C9 -> 1 | D49: 2 | E49: 3 | F49: 4 | G49: 5 | H49: 6 | I49: =I9 -> 7 | J49: 8 | K49: 9
A50: 47 | B50: Culvert present? (Yes or No) | C50: Yes | D50: Yes | E50: Yes | F50: Yes | G50: Yes | H50: Yes | I50: Yes | J50: Yes | K50: Yes
A51: 48 | B51: Shape | C51: Circular | D51: Circular | E51: Circular | F51: Circular | G51: Circular | H51: Circular | I51: Circular | J51: Circular | K51: Circular
A52: 49 | B52: Material | C52: RCP | D52: RCP | E52: RCP | F52: RCP | G52: RCP | H52: RCP | I52: RCP | J52: RCP | K52: RCP
A53: 50 | B53: Diameter/span (ft) | C53: 2 | D53: 2.25 | E53: 2.5 | F53: 2.5 | G53: 3 | H53: 2 | I53: 2 | J53: 2 | K53: 2.5
A54: 51 | B54: Number of barrels | C54: 1 | D54: 1 | E54: 1 | F54: 1 | G54: 1 | H54: 1 | I54: 1 | J54: 1 | K54: 1
A55: 52 | B55: Manning's n | C55: 0.013 | D55: 0.013 | E55: 0.013 | F55: 0.013 | G55: 0.013 | H55: 0.013 | I55: 0.013 | J55: 0.013 | K55: 0.013
A56: 53 | B56: Inlet entrance type | C56: AEW | D56: AEW | E56: AEW | F56: AEW | G56: AEW | H56: AEW | I56: AEW | J56: AEW | K56: AEW
A57: 54 | B57: Upstream invert (ft) | C57: 802.642 | D57: 801.525 | E57: 798.503 | F57: 797.855 | G57: 788.756 | H57: 789.619 | I57: 784.235 | J57: 786.268 | K57: 796.274
A58: 55 | B58: Downstream invert (ft) | C58: 802.493 | D58: 800.991 | E58: 798.452 | F58: 797.642 | G58: 788.264 | H58: 788.048 | I58: 781.321 | J58: 785.651 | K58: 796.076
A59: 56 | B59: Length (ft) | C59: 54 | D59: 50 | E59: 56 | F59: 96 | G59: 62 | H59: 104 | I59: 98 | J59: 62 | K59: 66
A60: 57 | B60: Slope (%) | C60: =(C57-C58)/C59 -> 0.002759259259 | D60: =(D57-D58)/D59 -> 0.01068 | E60: 0.0009107142857 | F60: 0.00221875 | G60: 0.007935483871 | H60: 0.01510576923 | I60: =(I57-I58)/I59 -> 0.02973469388 | J60: 0.009951612903 | K60: 0.003
A61: 58 | B61: Computed Upstream Water Surface Elevation (ft) | C61: see line 73 | D61: see line 73 | E61: see line 73 | F61: see line 73 | G61: see line 73 | H61: see line 73 | I61: see line 73 | J61: see line 73 | K61: see line 73
A62: 59 | B62: Tailwater elevation | C62: see line 74 | D62: see line 74 | E62: see line 74 | F62: see line 74 | G62: see line 74 | H62: see line 74 | I62: see line 74 | J62: see line 74 | K62: see line 74
A63: 60 | B63: Outlet velocity (ft/s) | C63: see line 75 | D63: see line 75 | E63: see line 75 | F63: see line 75 | G63: see line 75 | H63: see line 75 | I63: see line 75 | J63: see line 75 | K63: see line 75
A64: 61 | B64: Proposed Culvert Design | F64: (CTH S)
A65: 62 | B65: Design ADT (2041) | C65: 6000 | D65: 6000 | E65: 6000 | F65: 3300 | G65: 6000 | H65: 3700 | I65: 3700 | J65: 3700 | K65: 3700
A66: 63 | B66: Shape | C66: Circular | D66: Circular | E66: Circular | F66: Circular | G66: Circular | H66: Circular | I66: Circular | J66: Circular | K66: Circular
A67: 64 | B67: Material | C67: RCP | D67: RCP | E67: RCP | F67: RCP | G67: RCP | H67: RCP | I67: RCP | J67: RCP | K67: RCP
A68: 65 | B68: Diameter/span (ft) | C68: 2 | D68: 2.25 | E68: 2.5 | F68: 2.5 | G68: 3 | H68: 2 | I68: 2 | J68: 2 | K68: 2.5
A69: 66 | B69: Number of barrels | C69: 1 | D69: 1 | E69: 1 | F69: 1 | G69: 1 | H69: 1 | I69: 1 | J69: 1 | K69: 1
A70: 67 | B70: Manning's n | C70: 0.012 | D70: 0.012 | E70: 0.012 | F70: 0.012 | G70: 0.012 | H70: 0.012 | I70: 0.012 | J70: 0.012 | K70: 0.012
A71: 68 | B71: Inlet entrance type | C71: AEW | D71: AEW | E71: AEW | F71: AEW | G71: AEW | H71: AEW | I71: AEW | J71: AEW | K71: AEW
A72: 69 | B72: Upstream invert (ft) | C72: 802.65 | D72: 801.53 | E72: 798.5 | F72: 797.86 | G72: 788.76 | H72: 789.619 | I72: 784.235 | J72: 786.268 | K72: 796.274
A73: 70 | B73: Downstream invert (ft) | C73: 802.49 | D73: 800.99 | E73: 798.33 | F73: 797.57 | G73: 788.26 | H73: 788.048 | I73: 781.321 | J73: 785.651 | K73: 796.076
A74: 71 | B74: Length (ft) | C74: 54 | D74: 50 | E74: 56 | F74: 96 | G74: 62 | H74: 104 | I74: 98 | J74: 62 | K74: 66
A75: 72 | B75: Slope (%) | C75: =(C72-C73)/C74 -> 0.002962962963 | D75: =(D72-D73)/D74 -> 0.0108 | E75: 0.003035714286 | F75: 0.003020833333 | G75: 0.008064516129 | H75: 0.01510576923 | I75: =(I72-I73)/I74 -> 0.02973469388 | J75: 0.009951612903 | K75: 0.003
A76: 73 | B76: Computed Upstream Water Surface Elevation (ft) | C76: 804.87 | D76: 804.4 | E76: 800.72 | F76: 800.37 | G76: 792.18 | H76: 793.44 | I76: 788.05 | J76: 790.1 | K76: 798.69
A77: 74 | B77: Tailwater elevation | C77: 802.68 | D77: 801.25 | E77: 798.54 | F77: 797.81 | G77: 788.63 | H77: 788.32 | I77: 781.59 | J77: 785.92 | K77: 796.31
A78: 75 | B78: Outlet velocity (ft/s) | C78: 6.2 | D78: 10.2 | E78: 6.1 | F78: 6.5 | G78: 9.3 | H78: 10.5 | I78: 13.2 | J78: 8.9 | K78: 6.4
A79: 76 | B79: Change in Upstream Water Surface Elevation (ft) | C79: no change | D79: no change | E79: slight decrease | F79: slight decrease | G79: no change | H79: no change | I79: no change | J79: no change | K79: no change
A80: 77 | B80: Riprap outfall (Size riprap or None) | C80: none | D80: none | E80: none | F80: none | G80: none | H80: none | I80: none | J80: none | K80: none
A81: 78 | B81: Maximum allowable headwater | C81: see line 81 | D81: see line 81 | E81: see line 81 | F81: see line 81 | G81: see line 81 | H81: see line 81 | I81: see line 81 | J81: see line 81 | K81: see line 81
A82: 79 | B82: Maximum allowable headwater design criteria | C82: Top of Subgrade | D82: Top of Subgrade | E82: Top of Subgrade | F82: Top of Subgrade | G82: Top of Subgrade | H82: Top of Subgrade | I82: Top of Subgrade | J82: Top of Subgrade | K82: Top of Subgrade
A83: 80 | B83: Station of lowest subgrade shoulder point (0+00) | C83: 45+20 | D83: 81+12 | E83: 145+65 | F83: 65+47 | G83: 228+40 | H83: 579+75 | I83: 585+05 | J83: 620+94 | K83: 678+50
A84: 81 | B84: Elevation of lowest subgrade shoulder point (ft) | C84: ~807.25 | D84: ~804.75 | E84: ~800.50 | F84: ~800.75 | G84: ~793.75 | H84: ~797.00 | I84: ~790.25 | J84: ~790.75 | K84: ~801.00
A85: 82 | B85: Headwater to pipe diameter ratio | C85: =(C76-C72)/C68 -> 1.11 | D85: =(D76-D72)/D68 -> 1.275555556 | E85: 0.888 | F85: 1.004 | G85: 1.14 | H85: 1.9105 | I85: 1.9075 | J85: 1.916 | K85: 0.9664
A86: 83 | B86: Floodplain Management | C86: NA
A87: 84 | B87: Mapped floodplain | C87: DD Menu | D87: DD Menu | E87: DD Menu | F87: DD Menu | G87: DD Menu | H87: DD Menu | I87: DD Menu | J87: DD Menu | K87: DD Menu
A88: 85 | B88: Increase in headwater | C88: DD Menu | D88: DD Menu | E88: DD Menu | F88: DD Menu | G88: DD Menu | H88: DD Menu | I88: DD Menu | J88: DD Menu | K88: DD Menu
A89: 86 | B89: Drainage District Issues | C89: NA
A90: 87 | B90: Is culvert in a drainage district? | C90: DD Menu | D90: DD Menu | E90: DD Menu | F90: DD Menu | G90: DD Menu | H90: DD Menu | I90: DD Menu | J90: DD Menu | K90: DD Menu
A91: 88 | B91: Drainage District Name
A92: 89 | B92: Increase in headwater | C92: DD Menu | D92: DD Menu | E92: DD Menu | F92: DD Menu | G92: DD Menu | H92: DD Menu | I92: DD Menu | J92: DD Menu | K92: DD Menu
A93: 90 | B93: Drainage board approval? | C93: DD Menu | D93: DD Menu | E93: DD Menu | F93: DD Menu | G93: DD Menu | H93: DD Menu | I93: DD Menu | J93: DD Menu | K93: DD Menu
A94: 91 | B94: Aquatic Organism Passage | C94: NA
A95: 92 | B95: Is aquatic organism passage a concern? | C95: DD Menu | D95: DD Menu | E95: DD Menu | F95: DD Menu | G95: DD Menu | H95: DD Menu | I95: DD Menu | J95: DD Menu | K95: DD Menu
A96: 93 | B96: Does WDNR concur with design? | C96: DD Menu | D96: DD Menu | E96: DD Menu | F96: DD Menu | G96: DD Menu | H96: DD Menu | I96: DD Menu | J96: DD Menu | K96: DD Menu
A97: 94 | B97: Embedment depth (ft)
A98: 95 | B98: Embedment material
A100: 96 | B100: Section 5: CULVERT LINER DESIGN
A101: 97 | B101: Existing Culvert
A102: 98 | B102: Outfall number | C102: =C9 -> 1 | D102: 2 | E102: 3 | F102: 4 | G102: 5 | H102: 6 | I102: =I9 -> 7 | J102: 8 | K102: 9
A103: 99 | B103: Existing culvert size (ft)
A104: 100 | B104: Pipe material
A105: 101 | B105: Pipe condition
A106: 102 | B106: Any collapse? | C106: DD Menu | D106: DD Menu | E106: DD Menu | F106: DD Menu | G106: DD Menu | H106: DD Menu | I106: DD Menu | J106: DD Menu | K106: DD Menu
A107: 103 | B107: Any deflection? | C107: DD Menu | D107: DD Menu | E107: DD Menu | F107: DD Menu | G107: DD Menu | H107: DD Menu | I107: DD Menu | J107: DD Menu | K107: DD Menu
A108: 104 | B108: Are ends crushed? | C108: DD Menu | D108: DD Menu | E108: DD Menu | F108: DD Menu | G108: DD Menu | H108: DD Menu | I108: DD Menu | J108: DD Menu | K108: DD Menu
A109: 105 | B109: n value existing pipe
A110: 106 | B110: Pipe geometry (i.e. circular) | C110: DD Menu | D110: DD Menu | E110: DD Menu | F110: DD Menu | G110: DD Menu | H110: DD Menu | I110: DD Menu | J110: DD Menu | K110: DD Menu
A111: 107 | B111: Upstream invert (ft) | C111: 100
A112: 108 | B112: Downstream invert (ft) | C112: 99
A113: 109 | B113: Length (ft) | C113: 100
A114: 110 | B114: Slope (%) | C114: =(C111-C112)/C113 -> 0.01 | D114: =(D111-D112)/D113 ->  | I114: =(I111-I112)/I113 -> 
A115: 111 | B115: Depth of cover over culvert (ft)
A116: 112 | B116: Is overtopping an issue? | C116: DD Menu | D116: DD Menu | E116: DD Menu | F116: DD Menu | G116: DD Menu | H116: DD Menu | I116: DD Menu | J116: DD Menu | K116: DD Menu
A117: 113 | B117: Upstream flooding risk? | C117: DD Menu | D117: DD Menu | E117: DD Menu | F117: DD Menu | G117: DD Menu | H117: DD Menu | I117: DD Menu | J117: DD Menu | K117: DD Menu
A118: 114 | B118: Existing Design highwater elevation (ft)
A119: 115 | B119: Field verify dimension? | C119: DD Menu | D119: DD Menu | E119: DD Menu | F119: DD Menu | G119: DD Menu | H119: DD Menu | I119: DD Menu | J119: DD Menu | K119: DD Menu
A120: 116 | B120: Liner Details
A121: 117 | B121: Estimated Diameter (ft)
A122: 118 | B122: Proposed Material
A123: 119 | B123: Roughness, n
A124: 120 | B124: Upstream invert (ft)
A125: 121 | B125: Downstream invert (ft)
A126: 122 | B126: Proposed Design highwater elevation (ft)
A127: 123 | B127: Change in highwater elevation (ft)
A128: 124 | B128: Floodplain Management
A129: 125 | B129: Mapped floodplain | C129: DD Menu | D129: DD Menu | E129: DD Menu | F129: DD Menu | G129: DD Menu | H129: DD Menu | I129: DD Menu | J129: DD Menu | K129: DD Menu
A130: 126 | B130: Increase in headwater | C130: DD Menu | D130: DD Menu | E130: DD Menu | F130: DD Menu | G130: DD Menu | H130: DD Menu | I130: DD Menu | J130: DD Menu | K130: DD Menu
A131: 127 | B131: Drainage District Issues
A132: 128 | B132: Is culvert in a drainage district? | C132: DD Menu | D132: DD Menu | E132: DD Menu | F132: DD Menu | G132: DD Menu | H132: DD Menu | I132: DD Menu | J132: DD Menu | K132: DD Menu
A133: 129 | B133: Drainage District Name
A134: 130 | B134: Has drainage board approved use of a liner? | C134: DD Menu | D134: DD Menu | E134: DD Menu | F134: DD Menu | G134: DD Menu | H134: DD Menu | I134: DD Menu | J134: DD Menu | K134: DD Menu
A135: 131 | B135: Aquatic Organism Passage
A136: 132 | B136: Is aquatic organism passage a concern? | C136: DD Menu | D136: DD Menu | E136: DD Menu | F136: DD Menu | G136: DD Menu | H136: DD Menu | I136: DD Menu | J136: DD Menu | K136: DD Menu
A137: 133 | B137: Does WDNR concur with design? | C137: DD Menu | D137: DD Menu | E137: DD Menu | F137: DD Menu | G137: DD Menu | H137: DD Menu | I137: DD Menu | J137: DD Menu | K137: DD Menu
A138: 134 | B138: Embedment depth (ft)
A139: 135 | B139: Embedment material
A141: Enter Line Number and Note. Add more boxes if necessary

Sheet Drainage-DataExample Problem (hidden)
A1: 1 | B1: Drainage Data
A2: 2 | B2: ='Drainage-Summary 9190-26-71'!B2 -> Project ID: 9190-26(27)-71
A3: 3 | B3: ='Drainage-Summary 9190-26-71'!B3 -> Title: Pulaski - STH 22
A4: 4 | B4: ='Drainage-Summary 9190-26-71'!B4 -> Designer/Checker: Spielmacher
A5: 5 | B5: DOT Region/Firm Name:
A6: 6 | B6: ='Drainage-Summary 9190-26-71'!B6 -> Date: 3-21-18
A8: 7 | B8: OUTFALL INFORMATION
A9: 8 | B9: Outfall number | C9: 1 | D9: 2 | E9: 3 | F9: 4 | G9: 5 | H9: 6
A10: 9 | B10: Outfall discharges to:
A11: 10 | B11: Waterway crossing type | C11: Box Culvert | D11: DD Menu | E11: DD Menu | F11: DD Menu | G11: DD Menu | H11: DD Menu
A12: 12 | B12: Previous flooding issues or flow restrictions? | C12: No | D12: DD Menu | E12: DD Menu | F12: DD Menu | G12: DD Menu | H12: DD Menu
A13: 13 | B13: Is the drainageway a navigable waterway? | C13: Yes | D13: DD Menu | E13: DD Menu | F13: DD Menu | G13: DD Menu | H13: DD Menu
A14: 14 | B14: Waterway designation, if any | C14: N/A | D14: DD Menu | E14: DD Menu | F14: DD Menu | G14: DD Menu | H14: DD Menu
A16: 15 | B16: BASIC SUB BASIN DRAINAGE INFORMATION
A17: 16 | B17: Outfall number | C17: =C9 -> 1 | D17: 2 | E17: 3 | F17: 4 | G17: 5 | H17: 6
A18: 17 | B18: Outfall station | C18: 397+89 | E18: 397+89
A19: 18 | B19: Flood design frequency (yrs) | C19: 25 | E19: 25
A20: 19 | B20: Check design frequency (yrs) | C20: 100 | E20: 100
A21: 20 | B21: Drainage area (acres) | C21: 101.5 | E21: 101.5
A22: 21 | B22: Hydrologic Method | C22: Rational | E22: TR20
A23: 22 | B23: Time of Concentration (min) | C23: 20 | E23: 20
A24: 23 | B24: C or CN | C24: 0.23 | E24: 73
A25: 24 | B25: Rainfall intensity (in/hr) (rational method only) | C25: 5
A26: 25 | B26: Rainfall depth for design storm (in) | E26: 4.9
A27: 26 | B27: Peak flow (cfs) | C27: 117 | E27: 225 | J27: =C21*C24*C25 -> 116.725
A28: 27 | B28: Hydraulic Design software | C28: HY-8 | E28: HY-8
A30: 28 | B30: CULVERT DESIGN
A31: 29 | B31: Existing Culvert
A32: 30 | B32: Outfall number | C32: =C9 -> 1 | D32: 2 | E32: 3 | F32: 4 | G32: 5 | H32: 6
A33: 31 | B33: Culvert present? (Yes or No) | C33: Yes | D33: DD Menu | E33: DD Menu | F33: DD Menu | G33: DD Menu | H33: DD Menu
A34: 32 | B34: Shape | C34: Box | D34: DD Menu | E34: DD Menu | F34: DD Menu | G34: DD Menu | H34: DD Menu
A35: 33 | B35: Material | C35: RCP | D35: DD Menu | E35: DD Menu | F35: DD Menu | G35: DD Menu | H35: DD Menu
A36: 34 | B36: Diameter/span (ft) | C36: 6 x 6
A37: 35 | B37: Number of barrels | C37: 1
A38: 36 | B38: Manning's n | C38: 0.013
A39: 37 | B39: Inlet entrance type | C39: Headwall | D39: DD Menu | E39: DD Menu | F39: DD Menu | G39: DD Menu | H39: DD Menu
A40: 38 | B40: Upstream invert (ft) | C40: 839.2
A41: 39 | B41: Downstream invert (ft) | C41: 839
A42: 40 | B42: Length (ft) | C42: 34
A43: 41 | B43: Slope (%) | C43: =(C40-C41)/C42 -> 0.005882352941
A44: 42 | B44: Computed Upstream Water Surface Elevation (ft) | C44: 843.27
A45: 43 | B45: Tailwater elevation | C45: 841.23
A46: 44 | B46: Overtopping Frequency | C46: > 100yr
A47: 45 | B47: Outlet velocity (ft/s) | C47: 10.35
A48: 46 | B48: Proposed Culvert Design
A49: 47 | B49: Design ADT
A50: 48 | B50: Shape | C50: Circular | D50: DD Menu | E50: DD Menu | F50: DD Menu | G50: DD Menu | H50: DD Menu
A51: 49 | B51: Material | C51: RCP | D51: DD Menu | E51: DD Menu | F51: DD Menu | G51: DD Menu | H51: DD Menu
A52: 50 | B52: Diameter/span (ft) | C52: 6
A53: 51 | B53: Number of barrels | C53: 1
A54: 52 | B54: Manning's n | C54: 0.013
A55: 53 | B55: Inlet entrance type | C55: AEW | D55: DD Menu | E55: DD Menu | F55: DD Menu | G55: DD Menu | H55: DD Menu
A56: 54 | B56: Upstream invert (ft) | C56: 838.94
A57: 55 | B57: Downstream invert (ft) | C57: 838.31
A58: 56 | B58: Length (ft) | C58: 55
A59: 57 | B59: Slope (%) | C59: =(C56-C57)/C58 -> 0.01145454545
A60: 58 | B60: Computed Upstream Water Surface Elevation (ft) | C60: 843.68
A61: 59 | B61: Tailwater elevation | C61: 840.59
A62: 60 | B62: Overtopping Frequency | C62: > 100 yr
A63: 61 | B63: Outlet velocity (ft/s) | C63: 12.29
A64: 62 | B64: Change in Upstream Water Surface Elevation (ft) | C64: + 0.41
A65: 63 | B65: Riprap outfall (Size riprap or None)
A66: 64 | B66: Maximum allowable headwater
A67: 65 | B67: Maximum allowable headwater design criteria | C67: Top of Subgrade | D67: DDMenu | E67: DDMenu | F67: DDMenu | G67: DDMenu | H67: DDMenu
A68: 66 | B68: Station of lowest subgrade shoulder point (0+00) | C68: 397 + 89
A69: 67 | B69: Elevation of lowest subgrade shoulder point (ft) | C69: ~ 847.0
A70: 68 | B70: Headwater to pipe diameter ratio | C70: =(843.68-838.94)/C52 -> 0.79
A71: 69 | B71: Floodplain Management
A72: 70 | B72: Mapped floodplain | C72: No | D72: DD Menu | E72: DD Menu | F72: DD Menu | G72: DD Menu | H72: DD Menu
A73: 71 | B73: Increase in headwater | C73: Yes | D73: DD Menu | E73: DD Menu | F73: DD Menu | G73: DD Menu | H73: DD Menu
A74: 72 | B74: Drainage District Issues
A75: 73 | B75: Is culvert in a drainage district? | C75: No | D75: DD Menu | E75: DD Menu | F75: DD Menu | G75: DD Menu | H75: DD Menu
A76: 74 | B76: Drainage District Name
A77: 75 | B77: Increase in headwater | C77: DD Menu | D77: DD Menu | E77: DD Menu | F77: DD Menu | G77: DD Menu | H77: DD Menu
A78: 76 | B78: Drainage board approval? | C78: DD Menu | D78: DD Menu | E78: DD Menu | F78: DD Menu | G78: DD Menu | H78: DD Menu
A79: 77 | B79: Aquatic Organism Passage
A80: 78 | B80: Is aquatic organism passage a concern? | C80: No | D80: DD Menu | E80: DD Menu | F80: DD Menu | G80: DD Menu | H80: DD Menu
A81: 79 | B81: Does WDNR concur with design? | D81: DD Menu | E81: DD Menu | F81: DD Menu | G81: DD Menu | H81: DD Menu
A82: 80 | B82: Embedment depth (ft)
A83: 81 | B83: Embedment material
A85: 82 | B85: CULVERT LINER DESIGN
A86: 83 | B86: Existing Culvert
A87: 84 | B87: Outfall number | C87: =C9 -> 1 | D87: 2 | E87: 3 | F87: 4 | G87: 5 | H87: 6
A88: 85 | B88: Existing culvert size (ft) | C88: 4
A89: 86 | B89: Pipe material | C89: CMP
A90: 87 | B90: Pipe condition | C90: Poor
A91: 88 | B91: Any collapse? | C91: No | D91: DD Menu | E91: DD Menu | F91: DD Menu | G91: DD Menu | H91: DD Menu
A92: 89 | B92: Any deflection? | C92: No | D92: DD Menu | E92: DD Menu | F92: DD Menu | G92: DD Menu | H92: DD Menu
A93: 90 | B93: Are ends crushed? | C93: Yes | D93: DD Menu | E93: DD Menu | F93: DD Menu | G93: DD Menu | H93: DD Menu
A94: 91 | B94: n value existing pipe | C94: 0.024
A95: 92 | B95: Pipe geometry (i.e. circular) | C95: Circular | D95: DD Menu | E95: DD Menu | F95: DD Menu | G95: DD Menu | H95: DD Menu
A96: 93 | B96: Upstream invert (ft) | C96: 839
A97: 94 | B97: Downstream invert (ft) | C97: 838.5
A98: 95 | B98: Length (ft) | C98: 100
A99: 96 | B99: Slope (%) | C99: =(C96-C97)/C98 -> 0.005
A100: 97 | B100: Depth of cover over culvert (ft) | C100: 6
A101: 98 | B101: Is overtopping an issue? | C101: No | D101: DD Menu | E101: DD Menu | F101: DD Menu | G101: DD Menu | H101: DD Menu
A102: 99 | B102: Upstream flooding risk? | C102: No | D102: DD Menu | E102: DD Menu | F102: DD Menu | G102: DD Menu | H102: DD Menu
A103: 100 | B103: Existing Design highwater elevation (ft) | C103: 843.8
A104: 101 | B104: Field verify dimension? | C104: Yes | D104: DD Menu | E104: DD Menu | F104: DD Menu | G104: DD Menu | H104: DD Menu
A105: 102 | B105: Liner Details
A106: 103 | B106: Diameter (ft) | C106: 3.5
A107: 104 | B107: Material | C107: HDPE
A108: 105 | B108: Roughness, n | C108: 0.012
A109: 106 | B109: Upstream invert (ft) | C109: 839.25
A110: 107 | B110: Downstream invert (ft) | C110: 838.75
A111: 108 | B111: Proposed Design highwater elevation (ft) | C111: 844.32
A112: 109 | B112: Change in highwater elevation (ft) | C112: +0.52
A113: 110 | B113: Floodplain Management
A114: 111 | B114: Mapped floodplain | C114: No | D114: DD Menu | E114: DD Menu | F114: DD Menu | G114: DD Menu | H114: DD Menu
A115: 112 | B115: Increase in headwater | C115: Yes | D115: DD Menu | E115: DD Menu | F115: DD Menu | G115: DD Menu | H115: DD Menu
A116: 113 | B116: Drainage District Issues
A117: 114 | B117: Is culvert in a drainage district? | C117: No | D117: DD Menu | E117: DD Menu | F117: DD Menu | G117: DD Menu | H117: DD Menu
A118: 115 | B118: Drainage District Name
A119: 116 | B119: Has drainage board approved use of a liner? | C119: DD Menu | D119: DD Menu | E119: DD Menu | F119: DD Menu | G119: DD Menu | H119: DD Menu
A120: 117 | B120: Aquatic Organism Passage
A121: 118 | B121: Is aquatic organism passage a concern? | C121: No | D121: DD Menu | E121: DD Menu | F121: DD Menu | G121: DD Menu | H121: DD Menu
A122: 119 | B122: Does WDNR concur with design? | C122: DD Menu | D122: DD Menu | E122: DD Menu | F122: DD Menu | G122: DD Menu | H122: DD Menu
A123: 120 | B123: Embedment depth (ft)
A124: 121 | B124: Embedment material
A126: Enter Line Number and Note. Add more boxes if necessary

Sheet WQ-Summary 9190-26-71
A1: 1 | B1: Project Summary
A2: 2 | B2: ='Drainage-Summary 9190-26-71'!B2 -> Project ID: 9190-26(27)-71
A3: 3 | B3: ='Drainage-Summary 9190-26-71'!B3 -> Title: Pulaski - STH 22
A4: 4 | B4: ='Drainage-Summary 9190-26-71'!B4 -> Designer/Checker: Spielmacher
A5: 5 | B5: ='Drainage-Summary 9190-26-71'!B5 -> DOT Region/Firm Name: NER
A6: 6 | B6: ='Drainage-Summary 9190-26-71'!B6 -> Date: 3-21-18
A8: 7 | B8: HIGHWAY: | C8: ='Drainage-Summary 9190-26-71'!C8 -> STH 32
A9: 8 | B9: LIMITS: | C9: ='Drainage-Summary 9190-26-71'!C9 -> Pulaski NVL - CTH E, CTH E - STH 22
A10: 9 | B10: COUNTY: | C10: ='Drainage-Summary 9190-26-71'!C10 -> Outagamie
A11: 10 | B11: DESCRIPTION OF WORK: | C11: ='Drainage-Summary 9190-26-71'!C11 -> Resurfacing
A12: 11 | B12: PROJECT MANAGER: | C12: ='Drainage-Summary 9190-26-71'!C12 -> Zoellner
A13: 12 | B13: PS&E DATE: | C13: 11-1-20
A14: 13 | B14: DESIGN STAGE | C14: 60% Design Stage
B15: Water Quality Results Discussion
A16: 14 | B16: Water Quality Results Summary | C16: Total Project Drainage Basin Area (ac) | D16: Grass Swales | E16: Filter Strips | F16: Wet Detention Ponds | G16: Catch- basins | H16: Street Cleaning | I16: Biofilters | J16: Other Devices | K16: Untreated Areas
A17: 15 | B17: Drainage Area (ac) | C17: 0 | F17: 0 | G17: 0 | K17: =C17-SUM(D17:J17) -> 0
A18: 16 | B18: ROW Drainage Area (ac) | C18: 0 | F18: 0 | G18: 0 | K18: =C18-SUM(D18:J18) -> 0
A19: 17 | B19: Percent TSS Reduction by Treatement Type | C19: =(G18*G19+F18*F19+E18*E19+D18*D19+H18*H19+J18*J19)/C18 ->  | F19: 0 | G19: 0 | K19: 0
B20: Project Water Quality Objectives
A21: 18 | B21: THE PROJECT IS EXEMPT FROM TRANS 401 STORMWATER QUALITY REQUIREMENTS AND REQUIRES NO FURTHER WATER QUALITY INFORMATION. DESCRIBE BELOW WHY IT IS EXEMPT.
A22: 19 | B22: PROJECT CONSIDERED MINOR RECONSTRUCTION PER TRANS 401.03(3)(F) - NO TSS REDUCTION REQUIRED
A23: 20 | B23: DESCRIBE THE STORMWATER QUALITY MANAGEMENT REQUIREMENTS PER TRANS 401 OR THE TMDL WASTELOAD ALLOCATION.
A24: 21
A25: 22 | B25: IF THE PROJECT REQUIRES STORMWATER MANAGEMENT EXPLAIN HOW THE TRANS 401 2-YR PEAK DISCHARGE REQUIREMENT WAS MET.
A26: 23
A27: 24 | B27: HAS THE DEPARTMENT AGREED TO MEET ANY LOCAL STORMWATER QUALITY ORDINANCES OR REQUIREMENTS FOR THIS PROJECT? IF SO, DESCRIBE.
A28: 25
A29: 26 | B29: IF THE PROJECT REQUIRES STORM WATER MANAGEMENT EXPLAIN HOW THE TOTAL SUSPENDED SOLIDS REDUCTION WAS MET. Refer to Water Quality Results Summary above.
A30: 27
A31: 28 | B31: LIST THE POST CONSTRUCTION STORMWATER QUALITY CONTROL TREATMENT MEASURES FOR THE PROJECT.
A32: 29
B37: REGIONAL STORMWATER ENGINEER CONCURRENCE (SIGN AND DATE)
A38: 30

Sheet WQ-Wet Detention Ponds (hidden)
A1: 1 | B1: Wet Detention Pond Performance
A2: 2 | B2: ='Drainage-Summary 9190-26-71'!B2 -> Project ID: 9190-26(27)-71
A3: 3 | B3: ='Drainage-Summary 9190-26-71'!B3 -> Title: Pulaski - STH 22
A4: 4 | B4: ='Drainage-Summary 9190-26-71'!B4 -> Designer/Checker: Spielmacher
A5: 5 | B5: ='Drainage-Summary 9190-26-71'!B5 -> DOT Region/Firm Name: NER
A6: 6 | B6: ='Drainage-Summary 9190-26-71'!B6 -> Date: 3-21-18
A8: 7 | B8: Drainage Area Basin Number | G8: Total
A9: 8 | B9: Pond Number | C9: 1 | D9: 2
A10: 9 | B10: Pond Ending Station Number | C10: 3000 | D10: 4800
A11: 10 | B11: Pond Starting Station Number | C11: 2000 | D11: 3500
A12: 11 | B12: Left, Center, Right, or All | C12: R | D12: R
A13: 12 | B13: Site Assessment
A14: 13 | B14: Highway Segment Length Treated (ft) | C14: =C10-C11 -> 1000 | D14: =D10-D11 -> 1300
A15: 14 | B15: Drainage Area (ac) | C15: 12 | D15: 15 | G15: =SUM(C15:F15) -> 27
A16: 15 | B16: ROW Area (ac) | C16: 1.5 | D16: 1.9 | G16: =SUM(C16:F16) -> 3.4
A17: 16 | B17: Percent Reduction | C17: 0.75 | D17: 0.85 | G17: =(C16*C17+D16*D17+E16*E17+F16*E18)/G16 -> 0.8058823529
A18: 17 | B18: Results Summary
A19: 18 | B19: Percent Reduction per Treated Highway Segment | C19: =C17 -> 0.75 | D19: =D17 -> 0.85 | G19: =G17 -> 0.8058823529
A21: Enter Line Number and Comment. Add more boxes if necessary

Sheet WQ-Catchbasins (hidden)
A1: 1 | B1: Catchbasin Performance
A2: 2 | B2: ='Drainage-Summary 9190-26-71'!B2 -> Project ID: 9190-26(27)-71
A3: 3 | B3: ='Drainage-Summary 9190-26-71'!B3 -> Title: Pulaski - STH 22
A4: 4 | B4: ='Drainage-Summary 9190-26-71'!B4 -> Designer/Checker: Spielmacher
A5: 5
A6: 6 | B6: ='Drainage-Summary 9190-26-71'!B6 -> Date: 3-21-18
A8: 7 | B8: Drainage Area Basin Number | F8: Total
A9: 8 | B9: Catchbasin Number
A10: 9 | B10: Catchbasin Station | C10: 1000 | D10: 1200
A11: 10 | B11: Left, Center, or Right | C11: R | D11: R
A12: 11 | B12: Site Assessment
A13: 12 | B13: Distance to Next Catchbasin or Drainage Area (ft) | C13: 200 | D13: 250
A14: 13 | B14: Drainage Area (ac) | C14: 0.3 | D14: 0.45 | F14: =SUM(C14:E14) -> 0.75
A15: 14 | B15: ROW Area (ac) | C15: 0.2 | D15: 0.2 | F15: =SUM(C15:E15) -> 0.4
A16: 15 | B16: Cross Section Type (5 or 8) | C16: 5 | D16: 8 | E16: DD Menu
A17: 16 | B17: Catchbasin or Inlet Type/Size | C17: Type 3 Inlet | D17: Type 3 Inlet | E17: DD Menu
A18: 17 | B18: Predominant Cover Type | C18: Mostly Imperv | D18: Mostly Perv | E18: DD Menu
A19: 18 | B19: Design Chart Number | C19: 1 | D19: 10 | E19: DD Menu
A20: 19 | B20: Percent Reduction from Design Chart | C20: 0.22 | D20: 0.23
A21: 20 | B21: Results Summary
A22: 21 | B22: Average Drainage Area Width (ft) | C22: =C14/C$13*43560 -> 65.34 | D22: 78.408
A23: 22 | B23: Average ROW Width (ft) | C23: 43.56 | D23: 34.848
A24: 23 | B24: Percent Reduction per unit ROW Area | C24: =C20*C15 -> 0.044 | D24: =D20*D15 -> 0.046 | E24: =E20*E15 -> 0 | F24: =SUM(C24:E24)/F14 -> 0.12
A26: Enter Line Number and Comment. Add more boxes if necessary

Sheet Spreadsheet Constants (hidden)
A2: Catchbasin Types
A3: DD Menu
A5: Type 3 Inlet
A6: Type 1 CB
A7: 5' Dia CB
A8: Type 5 CB
A10: Cross Section Type
A11: DD Menu
A13: 5
A14: 8
A16: Land Use Types
A17: DD Menu
A19: Mostly Perv
A20: Mostly Imperv
A22: Soil Types
A23: DD Menu
A25: Sandy
A26: Silty/Clayey
A28: Design Freq
A29: DD Menu
A31: Yes
A32: No
A34: Tailwater Condition
A35: DD Menu
A37: Submerged
A38: Unsubmerged
A39: Free Flow Outlet
A41: Chart Number
A42: DD Menu
A44: 1
A45: 2
A46: 3
A47: 4
A48: 5
A49: 6
A50: 7
A51: 8
A52: 9
A53: 10
A55: Culvert_Shape
A56: DD Menu
A58: Circular
A59: Elliptical
A60: Arch
A61: Box
A63: Culvert_Material
A64: DD Menu
A66: RCP
A67: CMP
A68: HDPE
A70: Inlet_Entrance_Type
A71: DD Menu
A73: AEW
A74: Miter to Slope
A75: Projected
A76: Headwall
A78: Outfall_Discharges_To
A79: DD Menu
A81: Overland
A82: Ditch
A83: Creek
A84: River
A85: Wetland
A86: Storm Sewer
A87: Combined Sewer
A88: Other
A90: Waterway_Type
A91: DD Menu
A93: N/A
A94: Wetland
A95: 303(d) Waters
A96: Exceptional Waters
A97: Outstanding Waters
A98: Waters of the U.S.
A100: Stormwater_Conveyance_Type
A101: DD Menu
A103: Storm Sewer
A104: Ditch/Swale
A105: Combined Sewer
A107: Waterway_Crossing_Type
A108: DD Menu
A110: Culvert
A111: Box Culvert
A112: Storm Sewer
A113: 3 Sided Box Culvert
A114: Bridge
A116: Buffer_Options
A117: DD Menu
A119: Swales
A120: Filter Strips
A121: Veg. Embankment
A123: Freeway_Lanes_and_Design_Chart_Number
A124: DD Menu
A125: 1
A126: 2
A127: 3
A129: Freeway_Soil_Types
A130: DD Menu
A131: Sand
A132: Loamy Sand
A133: Sandy Loam
A134: Loam
A135: Silty Clay Loam
A137: Headwater_Design_Criteria
A138: DDMenu
A139: 1.5xHw/Dia
A140: Top of Subgrade
A142: Swale_Soil_Type
A143: DD Menu
A144: Sand
A145: Loamy Sand
A146: Sandy Loam
A147: Loamy Sand
A148: Silty Clay Loam
A150: Number_of_Highway_Lanes
A151: DDMenu
A152: 1
A153: 2
A154: 3
A155: 4
A157: Typical_Grass_Swale_Slope
A158: DD Menu
A159: 0.003
A160: 0.013
A161: 0.035
A163: Swale_Design_Chart_Number
A164: DD Menu
A165: 1
A166: 2
A167: 3
A169: Grass_Swale_Width
A170: DD Menu
A171: 0
A172: 10

Sheet Sheet1 (hidden)
